Workbook

Sheet 入力シート
A1: 請求書入力シート【納入業者／一般請求】
A3: 取引先情報
A4: ① | B4: 取引先コード
A5: ② | B5: インボイス登録番号 | E5: T
A6: ③ | B6: 郵便番号 | F6: -
A7: ④ | B7: 住所
A9: ⑤ | B9: 社名
A10: ⑥ | B10: 電話番号
A11: ⑦ | B11: FAX
A12: ⑧ | B12: 振込先情報 | E12: 金融機関名
E13: 本店・支店
E14: 預金区分 | H14: 口座番号
E15: 口座名義（カタカナ入力）
A16: ⑨ | B16: 請求日付 | E16: 20 | G16: 年 | I16: 月 | K16: 日
A17: ⑩ | B17: 消費税の端数処理 | E17: 切り捨て | H17: =IF(E17="","入力必須です","") -> 
A19: 当社請求先情報
A20: ⑪ | B20: 工事コード | H20: -
A21: ⑫ | B21: 工事名称又は部課名
E23: 自社の内訳書を添付する場合
C25: FALSE | E25: 税率別計 | H25: 消費税額
B26: ① 10% 対象
B27: ② 8% 対象 ※
B28: ③ 非課税対象 ◎ | H28: 0
B29: 合 計 （①+②+③） | E29: =SUM(E26:G28) -> 0 | H29: =SUM(H26:J28) -> 0
E30: =SUM(E29:J29) -> 0
W96: =IF(SUM(W56:AB95)>0,SUM(W56:AB95),"") -> 

Sheet 請求書
A1: 請 求 書 【納入業者／一般請求】
A3: 磯部建設株式会社 | I3: 御中 | S3: 請求年月日 | W3: 20 | Y3: =IF(入力シート!F16=0,"",入力シート!F16) ->  | AA3: 年 | AB3: =IF(入力シート!H16=0,"",入力シート!H16) ->  | AD3: 月 | AE3: =IF(入力シート!J16=0,"",入力シート!J16) ->  | AG3: 日
P5: 〒 | S5: =IF(入力シート!E6="","",入力シート!E6) ->  | U5: - | V5: =IF(入力シート!G6="","",入力シート!G6) -> 
P6: 住 所 | S6: =IF(入力シート!E7="","",入力シート!E7) -> 
S7: =IF(入力シート!E8="","",入力シート!E8) -> 
P8: 社 名 | S8: =IF(入力シート!E9="","",入力シート!E9) -> 
P10: 電話番号 | S10: =IF(入力シート!E10="","",入力シート!E10) ->  | Y10: FAX | AB10: =IF(入力シート!E11="","",入力シート!E11) -> 
A11: インボイス 登録番号 | E11: T | F11: =IF(入力シート!F5="","",入力シート!F5) -> 
P12: 金融機関 | S12: =IF(入力シート!G12="","",入力シート!G12&入力シート!I12) ->  | Z12: 店名 | AC12: =IF(入力シート!G13="","",入力シート!G13) -> 
P13: 預金区分 | S13: =IF(入力シート!G14="","",入力シート!G14) ->  | W13: 口座番号 | Z13: =IF(入力シート!J14="","",入力シート!J14) -> 
A14: 取引先コード | E14: =IF(入力シート!E4="","",入力シート!E4) ->  | P14: 口座名義 | S14: =IF(入力シート!I15="","",入力シート!I15) -> 
A15: 工事コード | E15: =IF(入力シート!E20="","",入力シート!E20) ->  | L15: - | M15: =IF(入力シート!I20="","",入力シート!I20) -> 
A16: 工事名称又は部課名 | G16: =IF(入力シート!E21="","",入力シート!E21) -> 
A18: 下記の通りご請求申し上げます。
A19: 請求金額 | E19: =W26 -> 0 | N19: 円 | Q19: （内、消費税額 | U19: =AC25 -> 0 | Z19: 円）
W21: 税率別計 | AC21: 消費税額
B22: ・税率区分について | I22: 空白 | K22: 0.1 | Q22: ① 10% 対象 | W22: =SUMIF( W31:W530, "", Y31:Y530 ) -> 0 | AC22: =IF(I25="切り捨て",ROUNDDOWN(W22*0.1,0),IF(I25="切り上げ",ROUNDUP(W22*0.1,0),ROUND(W22*0.1,0))) -> 0
I23: ※ | K23: 0.08 | Q23: ② 8% 対象 ※ | W23: =SUMIF( W31:W530, "※", Y31:Y530 ) -> 0 | AC23: =IF(I25="切り捨て",ROUNDDOWN(W23*0.08,0),IF(I25="切り上げ",ROUNDUP(W23*0.08,0),ROUND(W23*0.08,0))) -> 0
I24: ◎ | K24: 非課税 | Q24: ③ 非課税対象 ◎ | W24: =SUMIF( W31:W530, "◎", Y31:Y530 ) -> 0 | AC24: 0
B25: ・消費税の端数処理 ≪ | I25: =入力シート!E17 -> 切り捨て | L25: ≫ | Q25: 合 計 （①+②+③） | W25: =SUM(W22:AB24) -> 0 | AC25: =SUM(AC22:AH24) -> 0
W26: =SUM(W25:AH25) -> 0
A28: 【請求金額内訳】
A29: 番号 | C29: 日付 | F29: 取引内容 | O29: 数量 | Q29: 単位 | S29: 単価 | W29: 税率 区分 | Y29: 金額 | AE29: 備考
A31: 1 | Y31: =IF(O31*S31>0,O31*S31,"") -> 
A32: 2 | Y32: =IF(O32*S32>0,O32*S32,"") -> 
A33: 3
A34: 4
A35: 5
A36: 6
A37: 7
A38: 8
A39: 9
A40: 10
A41: 11 | Y41: =IF(O41*S41>0,O41*S41,"") -> 
A42: 12
A43: 13
A44: 14
A45: 15
A46: 16
A47: 17
A48: 18 | Y48: =IF(O48*S48>0,O48*S48,"") -> 
A49: 19
A50: 20
A51: 21
A52: 22
A53: 23
A54: 24
A55: 25
A56: 26
A57: 27
A58: 28
A59: 29
A60: 30
A61: 31
A62: 32
A63: 33
A64: 34
A65: 35
A66: 36
A67: 37
A68: 38
A69: 39
A70: 40
A71: 41
A72: 42
A73: 43
A74: 44
A75: 45
A76: 46
A77: 47
A78: 48
A79: 49
A80: 50
A81: 51
A82: 52
A83: 53
A84: 54
A85: 55
A86: 56
A87: 57
A88: 58
A89: 59
A90: 60
A91: 61
A92: 62
A93: 63
A94: 64 | Y94: =IF(O94*S94>0,O94*S94,"") -> 
A95: 65 | Y95: =IF(O95*S95>0,O95*S95,"") -> 
A96: 66 | Y96: =IF(O96*S96>0,O96*S96,"") -> 
A97: 67
A98: 68
A99: 69
A100: 70
A101: 71
A102: 72
A103: 73
A104: 74
A105: 75
A106: 76
A107: 77
A108: 78
A109: 79
A110: 80
A111: 81
A112: 82
A113: 83
A114: 84
A115: 85
A116: 86
A117: 87
A118: 88
A119: 89
A120: 90
A121: 91
A122: 92
A123: 93
A124: 94
A125: 95
A126: 96
A127: 97
A128: 98
A129: 99
A130: 100
A131: 101
A132: 102
A133: 103
A134: 104
A135: 105
A136: 106
A137: 107
A138: 108
A139: 109
A140: 110
A141: 111
A142: 112
A143: 113
A144: 114
A145: 115
A146: 116
A147: 117
A148: 118
A149: 119
A150: 120
A151: 121
A152: 122
A153: 123
A154: 124
A155: 125
A156: 126
A157: 127
A158: 128
A159: 129
A160: 130 | Y160: =IF(O160*S160>0,O160*S160,"") -> 
A161: 131
A162: 132
A163: 133
A164: 134
A165: 135
A166: 136
A167: 137
A168: 138
A169: 139
A170: 140
A171: 141
A172: 142
A173: 143
A174: 144
A175: 145
A176: 146
A177: 147
A178: 148
A179: 149
A180: 150
A181: 151
A182: 152
A183: 153
A184: 154
A185: 155
A186: 156
A187: 157
A188: 158
A189: 159
A190: 160
A191: 161
A192: 162
A193: 163
A194: 164
A195: 165
A196: 166
A197: 167
A198: 168
A199: 169
A200: 170
A201: 171
A202: 172
A203: 173
A204: 174
A205: 175
A206: 176
A207: 177
... 323 more rows

Sheet 記入方法 【入力シート（自社の内訳書_添付あり】
A1: ≪ 自社の内訳書を添付する場合 ≫
A2: 請求書入力シート【納入業者／一般請求】
A4: 取引先情報
A5: ① | B5: 取引先コード | E5: 0123456
A6: ② | B6: インボイス登録番号 | E6: T | F6: 0000000000000
A7: ③ | B7: 郵便番号 | E7: 321 | F7: - | G7: 1261
A8: ④ | B8: 住所 | E8: 栃木県日光市今市1525 （住所１）
E9: 栃木県日光市今市1525 （住所2）
A10: ⑤ | B10: 社名 | E10: 磯部建設 株式会社
A11: ⑥ | B11: 電話番号 | E11: 0288-22-5111
A12: ⑦ | B12: FAX | E12: 0288-22-7355
A13: ⑧ | B13: 振込先情報 | E13: 金融機関名 | G13: 栃木銀行
E14: 本店・支店 | G14: 今市支店
E15: 預金区分 | G15: 当座 | H15: 口座番号 | J15: 0123456
E16: 口座名義（カタカナ入力） | I16: イソベケンセツ（カ
A17: ⑨ | B17: 請求日付 | E17: 20 | F17: 23 | G17: 年 | H17: 10 | I17: 月 | J17: 31 | K17: 日
A18: ⑩ | B18: 消費税の端数処理 | E18: 切り捨て | H18: =IF(E18="","入力必須です","") -> 
A20: 当社請求先情報
A21: ⑪ | B21: 工事コード | E21: CH0750001 | H21: - | I21: 000
A22: ⑫ | B22: 工事名称又は部課名 | E22: 工事名称入力
E24: 自社の内訳書を添付する場合
C26: TRUE | E26: 税率別計 | H26: 消費税額
B27: ① 10% 対象 | E27: 1000000 | H27: 100000
B28: ② 8% 対象 ※ | E28: 100000 | H28: 8000
B29: ③ 非課税対象 ◎ | E29: 10000 | H29: 0
B30: 合 計 （①+②+③） | E30: =SUM(E27:G29) -> 1110000 | H30: =SUM(H27:J29) -> 108000
E31: =SUM(E30:J30) -> 1218000
W97: =IF(SUM(W57:AB96)>0,SUM(W57:AB96),"") -> 

Sheet 記入方法 【請求書（自社の内訳書_添付あり】
A1: 請 求 書 【納入業者／一般請求】
A3: 磯部建設株式会社 | I3: 御中 | S3: 請求年月日 | W3: 20 | Y3: 23 | AA3: 年 | AB3: 10 | AD3: 月 | AE3: 31 | AG3: 日
P5: 〒 | S5: 321 | U5: - | V5: 1261
P6: 住 所 | S6: 栃木県日光市今市1525 （住所1）
S7: 栃木県日光市今市1525 （住所2）
P8: 社 名 | S8: 磯部建設 株式会社
P10: 電話番号 | S10: 0288-22-5111 | Y10: FAX | AB10: 0288-22-7355
A11: インボイス 登録番号 | E11: T | F11: 0000000000000
P12: 金融機関 | S12: 栃木銀行 | Z12: 店名 | AC12: 今市支店
P13: 預金区分 | S13: 当座 | W13: 口座番号 | Z13: 0123456
A14: 取引先コード | E14: 0123456 | P14: 口座名義 | S14: イソベケンセツ（カ
A15: 工事コード | E15: CH0750001 | L15: - | M15: 000
A16: 工事名称又は部課名 | G16: 工事名称入力
A18: 下記の通りご請求申し上げます。
A19: 請求金額 | E19: =W26 -> 1218000 | N19: 円 | Q19: （内、消費税額 | U19: =AC25 -> 108000 | Z19: 円）
W21: 税率別計 | AC21: 消費税額
B22: ・税率区分について | I22: 空白 | K22: 0.1 | Q22: ① 10% 対象 | W22: 1000000 | AC22: 100000
I23: ※ | K23: 0.08 | Q23: ② 8% 対象 ※ | W23: 100000 | AC23: 8000
I24: ◎ | K24: 非課税 | Q24: ③ 非課税対象 ◎ | W24: 10000 | AC24: 0
B25: ・消費税の端数処理 ≪ | I25: 切り捨て | L25: ≫ | Q25: 合 計 （①+②+③） | W25: =SUM(W22:AB24) -> 1110000 | AC25: =SUM(AC22:AH24) -> 108000
W26: =SUM(W25:AH25) -> 1218000
A28: 【請求金額内訳】
A29: 番号 | C29: 日付 | F29: 取引内容 | O29: 数量 | Q29: 単位 | S29: 単価 | W29: 税率 区分 | Y29: 金額 | AE29: 備考
A31: 1 | F31: 別紙の通り | Y31: =IF(O31*S31>0,O31*S31,"") -> 
A32: 2 | Y32: =IF(O32*S32>0,O32*S32,"") -> 
A33: 3
A34: 4
A35: 5
A36: 6
A37: 7
A38: 8
A39: 9
A40: 10
A41: 11 | Y41: =IF(O41*S41>0,O41*S41,"") -> 
A42: 12
A43: 13
A44: 14
A45: 15
A46: 16
A47: 17
A48: 18 | Y48: =IF(O48*S48>0,O48*S48,"") -> 
A49: 19
A50: 20
A51: 21
A52: 22
A53: 23
A54: 24
A55: 25
A56: 26
A57: 27
A58: 28
A59: 29
A60: 30
A61: 31
A62: 32
A63: 33
A64: 34
A65: 35
A66: 36
A67: 37
A68: 38
A69: 39
A70: 40
A71: 41
A72: 42
A73: 43
A74: 44
A75: 45
A76: 46
A77: 47
A78: 48
A79: 49
A80: 50
A81: 51
A82: 52
A83: 53
A84: 54
A85: 55
A86: 56
A87: 57
A88: 58
A89: 59
A90: 60
A91: 61
A92: 62
A93: 63
A94: 64 | Y94: =IF(O94*S94>0,O94*S94,"") -> 
A95: 65 | Y95: =IF(O95*S95>0,O95*S95,"") -> 
A96: 66 | Y96: =IF(O96*S96>0,O96*S96,"") -> 
A97: 67
A98: 68
A99: 69
A100: 70
A101: 71
A102: 72
A103: 73
A104: 74
A105: 75
A106: 76
A107: 77
A108: 78
A109: 79
A110: 80
A111: 81
A112: 82
A113: 83
A114: 84
A115: 85
A116: 86
A117: 87
A118: 88
A119: 89
A120: 90
A121: 91
A122: 92
A123: 93
A124: 94
A125: 95
A126: 96
A127: 97
A128: 98
A129: 99
A130: 100
A131: 101
A132: 102
A133: 103
A134: 104
A135: 105
A136: 106
A137: 107
A138: 108
A139: 109
A140: 110
A141: 111
A142: 112
A143: 113
A144: 114
A145: 115
A146: 116
A147: 117
A148: 118
A149: 119
A150: 120
A151: 121
A152: 122
A153: 123
A154: 124
A155: 125
A156: 126
A157: 127
A158: 128
A159: 129
A160: 130 | Y160: =IF(O160*S160>0,O160*S160,"") -> 
A161: 131
A162: 132
A163: 133
A164: 134
A165: 135
A166: 136
A167: 137
A168: 138
A169: 139
A170: 140
A171: 141
A172: 142
A173: 143
A174: 144
A175: 145
A176: 146
A177: 147
A178: 148
A179: 149
A180: 150
A181: 151
A182: 152
A183: 153
A184: 154
A185: 155
A186: 156
A187: 157
A188: 158
A189: 159
A190: 160
A191: 161
A192: 162
A193: 163
A194: 164
A195: 165
A196: 166
A197: 167
A198: 168
A199: 169
A200: 170
A201: 171
A202: 172
A203: 173
A204: 174
A205: 175
A206: 176
A207: 177
... 323 more rows

Sheet 記入方法 【入力シート（自社の内訳書_添付なし】
A1: ≪ 自社の内訳書を添付せず明細を入力する場合 ≫
A2: 請求書入力シート【納入業者／一般請求】
A4: 取引先情報
A5: ① | B5: 取引先コード | E5: 0123456
A6: ② | B6: インボイス登録番号 | E6: T | F6: 0000000000000
A7: ③ | B7: 郵便番号 | E7: 321 | F7: - | G7: 1261
A8: ④ | B8: 住所 | E8: 栃木県日光市今市1525 （住所１）
E9: 栃木県日光市今市1525 （住所2）
A10: ⑤ | B10: 社名 | E10: 磯部建設 株式会社
A11: ⑥ | B11: 電話番号 | E11: 0288-22-5111
A12: ⑦ | B12: FAX | E12: 0288-22-7355
A13: ⑧ | B13: 振込先情報 | E13: 金融機関名 | G13: 栃木銀行
E14: 本店・支店 | G14: 今市支店
E15: 預金区分 | G15: 当座 | H15: 口座番号 | J15: 0123456
E16: 口座名義（カタカナ入力） | I16: イソベケンセツ（カ
A17: ⑨ | B17: 請求日付 | E17: 20 | F17: 23 | G17: 年 | H17: 10 | I17: 月 | J17: 31 | K17: 日
A18: ⑩ | B18: 消費税の端数処理 | E18: 切り捨て | H18: =IF(E18="","入力必須です","") -> 
A20: 当社請求先情報
A21: ⑪ | B21: 工事コード | E21: CH0750001 | H21: - | I21: 000
A22: ⑫ | B22: 工事名称又は部課名 | E22: 工事名称入力
E24: 自社の内訳書を添付する場合
C26: FALSE | E26: 税率別計 | H26: 消費税額
B27: ① 10% 対象
B28: ② 8% 対象 ※
B29: ③ 非課税対象 ◎ | H29: 0
B30: 合 計 （①+②+③） | E30: =SUM(E27:G29) -> 0 | H30: =SUM(H27:J29) -> 0
E31: =SUM(E30:J30) -> 0
W97: =IF(SUM(W57:AB96)>0,SUM(W57:AB96),"") -> 

Sheet 記入方法 【請求書（自社の内訳書_添付なし】
A1: 請 求 書 【納入業者／一般請求】
A3: 磯部建設株式会社 | I3: 御中 | S3: 請求年月日 | W3: 20 | Y3: 23 | AA3: 年 | AB3: 10 | AD3: 月 | AE3: 31 | AG3: 日
P5: 〒 | S5: 321 | U5: - | V5: 1261
P6: 住 所 | S6: 栃木県日光市今市1525 （住所1）
S7: 栃木県日光市今市1525 （住所2）
P8: 社 名 | S8: 磯部建設 株式会社
P10: 電話番号 | S10: 0288-22-5111 | Y10: FAX | AB10: 0288-22-7355
A11: インボイス 登録番号 | E11: T | F11: 0000000000000
P12: 金融機関 | S12: 栃木銀行 | Z12: 店名 | AC12: 今市支店
P13: 預金区分 | S13: 当座 | W13: 口座番号 | Z13: 0123456
A14: 取引先コード | E14: 0123456 | P14: 口座名義 | S14: イソベケンセツ（カ
A15: 工事コード | E15: CH0750001 | L15: - | M15: 000
A16: 工事名称又は部課名 | G16: 工事名称入力
A18: 下記の通りご請求申し上げます。
A19: 請求金額 | E19: =W26 -> 299792 | N19: 円 | Q19: （内、消費税額 | U19: =AC25 -> 27008 | Z19: 円）
W21: 税率別計 | AC21: 消費税額
B22: ・税率区分について | I22: 空白 | K22: 0.1 | Q22: ① 10% 対象 | W22: =SUMIF( W31:W53, "", Y31:Y53 ) -> 260084 | AC22: =IF(I25="切り捨て",ROUNDDOWN(W22*0.1,0),IF(I25="切り上げ",ROUNDUP(W22*0.1,0),ROUND(W22*0.1,0))) -> 26008
I23: ※ | K23: 0.08 | Q23: ② 8% 対象 ※ | W23: =SUMIF( W31:W53, "※", Y31:Y53 ) -> 12500 | AC23: =IF(I25="切り捨て",ROUNDDOWN(W23*0.08,0),IF(I25="切り上げ",ROUNDUP(W23*0.08,0),ROUND(W23*0.08,0))) -> 1000
I24: ◎ | K24: 非課税 | Q24: ③ 非課税対象 ◎ | W24: =SUMIF( W31:W53, "◎", Y31:Y53 ) -> 200 | AC24: 0
B25: ・消費税の端数処理 ≪ | I25: 切り捨て | L25: ≫ | Q25: 合 計 （①+②+③） | W25: =SUM(W22:AB24) -> 272784 | AC25: =SUM(AC22:AH24) -> 27008
W26: =SUM(W25:AH25) -> 299792
A28: 【請求金額内訳】
A29: 番号 | C29: 日付 | F29: 取引内容 | O29: 数量 | Q29: 単位 | S29: 単価 | W29: 税率 区分 | Y29: 金額 | AE29: 備考
A31: 1 | C31: 2023-10-01 | O31: 1 | Q31: 式 | S31: 250000 | Y31: =IF(O31*S31>0,O31*S31,"") -> 250000
A32: 2 | C32: 2023-10-10 | F32: 切手 | O32: 1 | Q32: 枚 | S32: 84 | Y32: =IF(O32*S32>0,O32*S32,"") -> 84
A33: 3 | C33: 2023-10-15 | F33: ウォーターサーバー | O33: 1 | Q33: 台 | S33: 10000 | Y33: 10000
A34: 4 | C34: 2023-10-15 | F34: 飲料水 | O34: 5 | Q34: 本 | S34: 2500 | W34: ※ | Y34: 12500
A35: 5 | C35: 2023-10-31 | F35: 収入印紙 | O35: 1 | Q35: 枚 | S35: 200 | W35: ◎ | Y35: 200
A36: 6
A37: 7
A38: 8
A39: 9
A40: 10
A41: 11 | Y41: =IF(O41*S41>0,O41*S41,"") -> 
A42: 12
A43: 13
A44: 14
A45: 15
A46: 16
A47: 17
A48: 18 | Y48: =IF(O48*S48>0,O48*S48,"") -> 
A49: 19
A50: 20
A51: 21
A52: 22
A53: 23

Sheet 設定 (hidden)
A1: 切り捨て | C1: 当座 | F1: 10% | G1: =" "&F1 -> 10%
A2: 切り上げ | C2: 普通 | E2: ※ | F2: 8% | G2: =E2&" "&F2 -> ※ 8%
A3: 四捨五入 | E3: ◎ | F3: 非課税 | G3: =E3&" " &F3 -> ◎ 非課税
